[Event "*** Titled Tuesday 3|2 Blitz"]
[Site "Chess.com"]
[Date "2016.05.03"]
[Round "3"]
[White "Aygehovit1992"]
[Black "AvitalBor"]
[Result "0-1"]
[WhiteElo "2496"]
[BlackElo "2360"]
[TimeControl "180+2"]
[EndTime "11:37:17 PDT"]
[Termination "AvitalBor won by resignation"]

1. e4 {[%clk 0:02:59.6]} 1... c5 {[%clk 0:03:00.1]} 2. Nf3 {[%clk 0:03:00.5]}
2... d6 {[%clk 0:03:00.7]} 3. d4 {[%clk 0:03:02]} 3... cxd4 {[%clk 0:03:02.6]}
4. Nxd4 {[%clk 0:03:03.9]} 4... Nf6 {[%clk 0:03:03.5]} 5. Nc3 {[%clk 0:03:05.6]}
5... a6 {[%clk 0:03:04.8]} 6. h3 {[%clk 0:03:04.9]} 6... e5 {[%clk 0:03:04.6]}
7. Nde2 {[%clk 0:03:01.3]} 7... h5 {[%clk 0:03:05.3]} 8. Ng1 {[%clk 0:03:01.4]}
8... Nbd7 {[%clk 0:03:00.1]} 9. Nf3 {[%clk 0:02:58.8]} 9... Be7 {[%clk
0:02:57.5]} 10. Bc4 {[%clk 0:02:48.8]} 10... b5 {[%clk 0:02:57]} 11. Bd5 {[%clk
0:02:42.6]} 11... Nxd5 {[%clk 0:02:56.2]} 12. Nxd5 {[%clk 0:02:43.2]} 12... Bb7
{[%clk 0:02:53.5]} 13. O-O {[%clk 0:02:44.2]} 13... Nf6 {[%clk 0:02:51.1]} 14.
Nxf6+ {[%clk 0:02:30.3]} 14... Bxf6 {[%clk 0:02:51.8]} 15. Qd3 {[%clk
0:02:31.9]} 15... Rc8 {[%clk 0:02:47.4]} 16. Rd1 {[%clk 0:02:32.5]} 16... O-O
{[%clk 0:02:46.7]} 17. c3 {[%clk 0:02:32.4]} 17... Rc4 {[%clk 0:02:32]} 18. Nd2
{[%clk 0:02:31.7]} 18... Rc6 {[%clk 0:02:31.4]} 19. Nf3 {[%clk 0:02:19.3]} 19...
Qe7 {[%clk 0:02:25.5]} 20. Be3 {[%clk 0:02:18.8]} 20... Rd8 {[%clk 0:02:19.8]}
21. a4 {[%clk 0:02:18.2]} 21... Rc4 {[%clk 0:02:19.5]} 22. axb5 {[%clk
0:02:17.5]} 22... Rxe4 {[%clk 0:02:15.3]} 23. bxa6 {[%clk 0:02:16.7]} 23... Ba8
{[%clk 0:02:16.4]} 24. a7 {[%clk 0:02:11.8]} 24... d5 {[%clk 0:02:15.2]} 25. Qb5
{[%clk 0:01:46.8]} 25... g5 {[%clk 0:01:46.5]} 26. Nd2 {[%clk 0:01:38.6]} 26...
Rh4 {[%clk 0:01:44.6]} 27. Nf3 {[%clk 0:01:22]} 27... Rc4 {[%clk 0:01:45.2]} 28.
Ra6 {[%clk 0:01:16.4]} 28... g4 {[%clk 0:01:36.9]} 29. Rxf6 {[%clk 0:01:16.4]}
29... Qxf6 {[%clk 0:01:33.6]} 30. Bg5 {[%clk 0:01:17.2]} 30... Qg6 {[%clk
0:01:29.9]} 31. Nxe5 {[%clk 0:00:55.7]} 31... Qxg5 {[%clk 0:01:28.1]} 32. Nxc4
{[%clk 0:00:56.6]} 32... gxh3 {[%clk 0:01:27]} 33. Ne3 {[%clk 0:00:57.4]} 33...
hxg2 {[%clk 0:01:21.1]} 34. Qb8 {[%clk 0:00:36]} 34... Kh7 {[%clk 0:01:04.4]}
35. Rd4 {[%clk 0:00:35.7]} 35... Rg8 {[%clk 0:00:41.9]} 36. Qc7 {[%clk
0:00:33.1]} 36... Qg6 {[%clk 0:00:40.1]} 37. Qe7 {[%clk 0:00:21.7]} 37... Bc6
{[%clk 0:00:34.6]} 38. Qe5 {[%clk 0:00:20.7]} 38... Ba4 {[%clk 0:00:30]} 39. Nf5
{[%clk 0:00:21.4]} 39... Bd7 {[%clk 0:00:28]} 40. Rxd5 {[%clk 0:00:19.9]} 40...
Qa6 {[%clk 0:00:20]} 41. Ne3 {[%clk 0:00:17.5]} 41... Bg4 {[%clk 0:00:17.9]} 42.
Qe4+ {[%clk 0:00:17]} 42... Rg6 {[%clk 0:00:17.7]} 43. Nxg4 {[%clk 0:00:15.5]}
43... hxg4 {[%clk 0:00:18.9]} 44. Rd1 {[%clk 0:00:15.8]} 44... Qxa7 {[%clk
0:00:19.7]} 45. Qxg2 {[%clk 0:00:17]} 45... Kg7 {[%clk 0:00:20.9]} 46. Qd5
{[%clk 0:00:17.6]} 46... Rf6 {[%clk 0:00:19.2]} 47. Qd4 {[%clk 0:00:18.3]} 47...
Qa2 {[%clk 0:00:15.1]} 48. Rd2 {[%clk 0:00:18.6]} 48... Qb1+ {[%clk 0:00:15.9]}
49. Kg2 {[%clk 0:00:19.8]} 49... Qf5 {[%clk 0:00:17.1]} 50. Rd3 {[%clk 0:00:18]}
50... Kg6 {[%clk 0:00:17.2]} 51. Rg3 {[%clk 0:00:18.2]} 51... Kh5 {[%clk
0:00:17]} 52. Qe3 {[%clk 0:00:15.6]} 52... Qd5+ {[%clk 0:00:17.9]} 53. Kh2
{[%clk 0:00:16.9]} 53... Re6 {[%clk 0:00:18.3]} 54. Qf4 {[%clk 0:00:16.8]} 54...
f5 {[%clk 0:00:18.7]} 55. Qb8 {[%clk 0:00:15.7]} 55... Rh6 {[%clk 0:00:18.5]}
56. Kg1 {[%clk 0:00:10.4]} 56... Kg5 {[%clk 0:00:19.7]} 57. f4+ {[%clk
0:00:08.8]} 57... Kh4 {[%clk 0:00:20.6]} 58. Kh2 {[%clk 0:00:07.8]} 58... Qd2+
{[%clk 0:00:14.2]} 59. Rg2 {[%clk 0:00:09]} 59... Qe3 {[%clk 0:00:14.4]} 60. Qe5
{[%clk 0:00:09.2]} 60... g3+ {[%clk 0:00:13]} 61. Kh1 {[%clk 0:00:09]} 61...
Kg4+ {[%clk 0:00:14.1]} 0-1

[Event "*** Titled Tuesday 3|2 Blitz"]
[Site "Chess.com"]
[Date "2016.05.03"]
[Round "3"]
[White "Yaacovn"]
[Black "Anton_Demchenko"]
[Result "0-1"]
[WhiteElo "2553"]
[BlackElo "2651"]
[TimeControl "180+2"]
[EndTime "11:37:37 PDT"]
[Termination "Anton_Demchenko won by resignation"]

1. d4 {[%clk 0:03:01.9]} 1... Nf6 {[%clk 0:03:01]} 2. Nf3 {[%clk 0:03:02.6]}
2... g6 {[%clk 0:03:02.1]} 3. c4 {[%clk 0:02:58.1]} 3... Bg7 {[%clk 0:03:03]} 4.
Nc3 {[%clk 0:02:59.6]} 4... O-O {[%clk 0:03:04.5]} 5. g3 {[%clk 0:03:00.8]} 5...
d6 {[%clk 0:03:05.5]} 6. Bg2 {[%clk 0:03:01.9]} 6... Nbd7 {[%clk 0:03:07.4]} 7.
O-O {[%clk 0:03:03.3]} 7... e5 {[%clk 0:03:08.8]} 8. e3 {[%clk 0:03:04.3]} 8...
c6 {[%clk 0:03:09.3]} 9. b3 {[%clk 0:03:05.4]} 9... Re8 {[%clk 0:03:09.3]} 10.
Qc2 {[%clk 0:03:06.6]} 10... a6 {[%clk 0:03:09.3]} 11. Ba3 {[%clk 0:03:07.3]}
11... e4 {[%clk 0:03:08.2]} 12. Nd2 {[%clk 0:03:04.8]} 12... d5 {[%clk
0:03:09.4]} 13. cxd5 {[%clk 0:03:05.9]} 13... cxd5 {[%clk 0:03:10.1]} 14. Na4
{[%clk 0:03:07.5]} 14... b5 {[%clk 0:03:10.7]} 15. Nc5 {[%clk 0:03:08.8]} 15...
Nf8 {[%clk 0:03:11.9]} 16. Rac1 {[%clk 0:03:08.7]} 16... h5 {[%clk 0:03:12.4]}
17. Bb2 {[%clk 0:03:07.2]} 17... N8h7 {[%clk 0:03:08]} 18. a4 {[%clk 0:03:07.9]}
18... b4 {[%clk 0:03:08.3]} 19. a5 {[%clk 0:03:02.8]} 19... Qxa5 {[%clk
0:03:02.3]} 20. Ra1 {[%clk 0:02:43.7]} 20... Qd8 {[%clk 0:03:01.7]} 21. Rfc1
{[%clk 0:02:42.9]} 21... Ng5 {[%clk 0:02:38.9]} 22. Na4 {[%clk 0:02:21.1]} 22...
Nh3+ {[%clk 0:02:15.5]} 23. Kf1 {[%clk 0:02:17.3]} 23... Qd7 {[%clk 0:01:49.8]}
24. Nb6 {[%clk 0:02:07.9]} 24... Qb5+ {[%clk 0:01:50.8]} 25. Ndc4 {[%clk
0:02:02.6]} 25... dxc4 {[%clk 0:01:52.1]} 26. Nxa8 {[%clk 0:01:59.1]} 26... c3+
{[%clk 0:01:38.5]} 27. Ke1 {[%clk 0:02:00.1]} 27... cxb2 {[%clk 0:01:36.2]} 28.
Qxb2 {[%clk 0:01:57.9]} 28... Rd8 {[%clk 0:00:44.6]} 29. Nc7 {[%clk 0:01:31.9]}
29... Qf5 {[%clk 0:00:45]} 30. Rc5 {[%clk 0:01:30.5]} 30... Qg4 {[%clk
0:00:45.9]} 31. Qe2 {[%clk 0:01:08.8]} 31... Ng1 {[%clk 0:00:40.3]} 32. Qxg4
{[%clk 0:01:04.9]} 32... hxg4 {[%clk 0:00:25.7]} 33. Nxa6 {[%clk 0:01:04.6]}
33... Nf3+ {[%clk 0:00:24.1]} 34. Ke2 {[%clk 0:01:05.3]} 34... Be6 {[%clk
0:00:23.3]} 35. Nxb4 {[%clk 0:00:34.8]} 35... Rb8 {[%clk 0:00:23.8]} 36. Nc6
{[%clk 0:00:15.3]} 36... Rxb3 {[%clk 0:00:24.2]} 37. Rc2 {[%clk 0:00:17]} 37...
Nd5 {[%clk 0:00:23]} 38. Ra7 {[%clk 0:00:08.6]} 38... Nc3+ {[%clk 0:00:21.7]}
39. Rxc3 {[%clk 0:00:06.9]} 39... Rxc3 {[%clk 0:00:23.6]} 40. d5 {[%clk
0:00:07.8]} 40... Bf5 {[%clk 0:00:22.3]} 41. Ne7+ {[%clk 0:00:06.5]} 41... Kh7
{[%clk 0:00:21.5]} 42. Nxf5 {[%clk 0:00:07.5]} 42... gxf5 {[%clk 0:00:22.8]} 43.
Rxf7 {[%clk 0:00:08.9]} 43... Rc2+ {[%clk 0:00:20.7]} 44. Kd1 {[%clk 0:00:09.9]}
44... Rd2+ {[%clk 0:00:21.7]} 45. Kc1 {[%clk 0:00:11.2]} 45... Rxd5 {[%clk
0:00:21.1]} 46. h3 {[%clk 0:00:12.8]} 46... Kg6 {[%clk 0:00:16.4]} 47. Rc7
{[%clk 0:00:13.7]} 47... gxh3 {[%clk 0:00:17.3]} 48. Bxh3 {[%clk 0:00:15.6]}
48... Ne1 {[%clk 0:00:16.4]} 49. g4 {[%clk 0:00:13.7]} 49... Nd3+ {[%clk
0:00:14]} 50. Kc2 {[%clk 0:00:15.1]} 50... fxg4 {[%clk 0:00:15.3]} 51. Bxg4
{[%clk 0:00:15.8]} 51... Nxf2 {[%clk 0:00:16.6]} 52. Be2 {[%clk 0:00:16.3]}
52... Nh3 {[%clk 0:00:11.9]} 53. Rc4 {[%clk 0:00:15.3]} 53... Ng5 {[%clk
0:00:12.3]} 54. Bg4 {[%clk 0:00:16.2]} 54... Bf6 {[%clk 0:00:13.1]} 55. Be2
{[%clk 0:00:16.5]} 55... Rd6 {[%clk 0:00:13.8]} 56. Bf1 {[%clk 0:00:17.6]} 56...
Kf5 {[%clk 0:00:15.1]} 57. Be2 {[%clk 0:00:17.4]} 57... Be5 {[%clk 0:00:16.5]}
58. Rc8 {[%clk 0:00:18.1]} 58... Rd7 {[%clk 0:00:14.5]} 59. Rf8+ {[%clk
0:00:18.1]} 59... Bf6 {[%clk 0:00:15.4]} 60. Ra8 {[%clk 0:00:16.9]} 60... Rc7+
{[%clk 0:00:16.6]} 61. Kd2 {[%clk 0:00:17.7]} 61... Nf3+ {[%clk 0:00:17.7]} 62.
Kd1 {[%clk 0:00:18]} 62... Rd7+ {[%clk 0:00:18.2]} 63. Kc1 {[%clk 0:00:19.4]}
63... Rc7+ {[%clk 0:00:17.6]} 64. Kd1 {[%clk 0:00:20.6]} 64... Rc3 {[%clk
0:00:18.6]} 65. Ra5+ {[%clk 0:00:17.5]} 65... Be5 {[%clk 0:00:19]} 66. Ra8
{[%clk 0:00:16.1]} 66... Rxe3 {[%clk 0:00:18]} 67. Rf8+ {[%clk 0:00:17.3]} 67...
Bf6 {[%clk 0:00:18.9]} 68. Bb5 {[%clk 0:00:16.9]} 68... Ra3 {[%clk 0:00:18.2]}
69. Ke2 {[%clk 0:00:17.8]} 69... Nd4+ {[%clk 0:00:17.8]} 0-1

[Event "*** Titled Tuesday 3|2 Blitz"]
[Site "Chess.com"]
[Date "2016.05.03"]
[Round "3"]
[White "Blitzstream"]
[Black "wonderfultime"]
[Result "1-0"]
[WhiteElo "2422"]
[BlackElo "2592"]
[TimeControl "180+2"]
[EndTime "11:37:53 PDT"]
[Termination "Blitzstream won by resignation"]

1. d4 {[%clk 0:03:01.9]} 1... d5 {[%clk 0:03:00.7]} 2. Nf3 {[%clk 0:03:02.3]}
2... Nf6 {[%clk 0:03:01.7]} 3. Bf4 {[%clk 0:03:02.6]} 3... c5 {[%clk 0:02:58.3]}
4. c3 {[%clk 0:03:01.6]} 4... Qb6 {[%clk 0:02:58.1]} 5. Qb3 {[%clk 0:03:02.3]}
5... c4 {[%clk 0:02:47.1]} 6. Qxb6 {[%clk 0:03:02.9]} 6... axb6 {[%clk 0:02:49]}
7. Nbd2 {[%clk 0:03:03.5]} 7... b5 {[%clk 0:02:44.7]} 8. Ne5 {[%clk 0:02:43.1]}
8... Bf5 {[%clk 0:02:34.5]} 9. f3 {[%clk 0:02:39.7]} 9... h5 {[%clk 0:02:31.3]}
10. a3 {[%clk 0:01:47.9]} 10... e6 {[%clk 0:02:27.6]} 11. Rc1 {[%clk 0:01:46.6]}
11... Nbd7 {[%clk 0:02:28.7]} 12. Nxd7 {[%clk 0:01:46.8]} 12... Nxd7 {[%clk
0:02:27.6]} 13. e4 {[%clk 0:01:47.9]} 13... Bg6 {[%clk 0:02:28.7]} 14. Be2
{[%clk 0:01:48]} 14... Nb6 {[%clk 0:02:29.6]} 15. Bd1 {[%clk 0:01:44.9]} 15...
Be7 {[%clk 0:02:05.7]} 16. Kf2 {[%clk 0:01:44.1]} 16... Kd7 {[%clk 0:01:57.7]}
17. Re1 {[%clk 0:01:44.5]} 17... Bh4+ {[%clk 0:01:45]} 18. g3 {[%clk 0:01:39.4]}
18... Be7 {[%clk 0:01:46.1]} 19. Bc2 {[%clk 0:01:40.2]} 19... Bh7 {[%clk
0:01:28]} 20. Be5 {[%clk 0:01:35.9]} 20... f6 {[%clk 0:01:28.1]} 21. Bf4 {[%clk
0:01:37]} 21... g5 {[%clk 0:01:20.9]} 22. Be3 {[%clk 0:01:34.9]} 22... g4 {[%clk
0:01:21.5]} 23. Re2 {[%clk 0:01:10.5]} 23... Rag8 {[%clk 0:01:09.6]} 24. Rce1
{[%clk 0:01:10.8]} 24... Bg6 {[%clk 0:01:02.6]} 25. Bf4 {[%clk 0:00:54.7]} 25...
Bf7 {[%clk 0:01:03.3]} 26. Nf1 {[%clk 0:00:46.8]} 26... h4 {[%clk 0:01:02.2]}
27. fxg4 {[%clk 0:00:40.9]} 27... Rxg4 {[%clk 0:00:59.3]} 28. Ne3 {[%clk
0:00:41.3]} 28... hxg3+ {[%clk 0:01:00.2]} 29. Bxg3 {[%clk 0:00:35.4]} 29...
Rxe4 {[%clk 0:00:47.2]} 30. Bxe4 {[%clk 0:00:35.2]} 30... dxe4 {[%clk
0:00:49.1]} 31. Ng4 {[%clk 0:00:34.3]} 31... Bg6 {[%clk 0:00:49.8]} 32. Ne3
{[%clk 0:00:29.9]} 32... Bh5 {[%clk 0:00:46.7]} 33. Rd2 {[%clk 0:00:30.7]} 33...
Bf3 {[%clk 0:00:41.9]} 34. d5 {[%clk 0:00:31.8]} 34... Bc5 {[%clk 0:00:43.1]}
35. dxe6+ {[%clk 0:00:30.7]} 35... Kxe6 {[%clk 0:00:45]} 36. Kf1 {[%clk
0:00:30.8]} 36... Rg8 {[%clk 0:00:36.3]} 37. Ng2 {[%clk 0:00:31.2]} 37... Nd5
{[%clk 0:00:37.3]} 38. Nh4 {[%clk 0:00:14]} 38... Ne3+ {[%clk 0:00:38.1]} 39.
Rxe3 {[%clk 0:00:13.1]} 39... Bxe3 {[%clk 0:00:40]} 40. Rd6+ {[%clk 0:00:14.7]}
40... Kf7 {[%clk 0:00:40.2]} 41. Rd7+ {[%clk 0:00:11.3]} 41... Ke6 {[%clk
0:00:41.1]} 42. Rd6+ {[%clk 0:00:12.6]} 42... Kf7 {[%clk 0:00:42.6]} 43. Rd7+
{[%clk 0:00:14.2]} 43... Ke8 {[%clk 0:00:44.1]} 44. Rxb7 {[%clk 0:00:13.7]}
44... Bg4 {[%clk 0:00:36.5]} 45. Rxb5 {[%clk 0:00:10.6]} 45... Kf7 {[%clk
0:00:33.5]} 46. Rb7+ {[%clk 0:00:10.6]} 46... Ke6 {[%clk 0:00:32.9]} 47. Ng2
{[%clk 0:00:10.5]} 47... Bg5 {[%clk 0:00:27.6]} 48. Rb6+ {[%clk 0:00:10.4]}
48... Kf5 {[%clk 0:00:29]} 49. Rb5+ {[%clk 0:00:11.1]} 49... Kg6 {[%clk
0:00:30]} 50. h4 {[%clk 0:00:11.8]} 50... Bh6 {[%clk 0:00:28.9]} 51. h5+ {[%clk
0:00:12.3]} 51... Kh7 {[%clk 0:00:29.5]} 52. Rb7+ {[%clk 0:00:13.1]} 52... Kh8
{[%clk 0:00:29.3]} 53. Bh4 {[%clk 0:00:14.6]} 53... Rf8 {[%clk 0:00:28.5]} 54.
Rb6 {[%clk 0:00:12.5]} 54... Kg7 {[%clk 0:00:29.8]} 55. Rb7+ {[%clk 0:00:13.8]}
55... Rf7 {[%clk 0:00:31.4]} 56. Rb5 {[%clk 0:00:14.4]} 56... f5 {[%clk
0:00:30.9]} 57. Bf2 {[%clk 0:00:15.3]} 57... f4 {[%clk 0:00:31.6]} 58. Bd4+
{[%clk 0:00:16.6]} 58... Kh7 {[%clk 0:00:29.4]} 59. Nh4 {[%clk 0:00:18.5]} 59...
e3 {[%clk 0:00:27.5]} 60. Rb8 {[%clk 0:00:18.8]} 60... Rf8 {[%clk 0:00:18.5]}
61. Rb7+ {[%clk 0:00:19.6]} 61... Kg8 {[%clk 0:00:19.6]} 62. Ng6 {[%clk
0:00:21.1]} 62... Re8 {[%clk 0:00:16.7]} 63. Ne7+ {[%clk 0:00:20.5]} 63... Kf7
{[%clk 0:00:17.9]} 64. Nf5+ {[%clk 0:00:19.9]} 64... Ke6 {[%clk 0:00:19.3]} 65.
Nxh6 {[%clk 0:00:20.3]} 65... Bxh5 {[%clk 0:00:20.6]} 66. Rb6+ {[%clk
0:00:20.9]} 66... Kd5 {[%clk 0:00:19.8]} 67. Nf5 {[%clk 0:00:21]} 67... Ke4
{[%clk 0:00:21.7]} 68. Nd6+ {[%clk 0:00:22.3]} 68... Kd3 {[%clk 0:00:22.8]} 69.
Nxe8 {[%clk 0:00:21.7]} 69... Bxe8 {[%clk 0:00:23.4]} 70. Rf6 {[%clk 0:00:22.1]}
70... Kd2 {[%clk 0:00:23.7]} 71. Kg1 {[%clk 0:00:15.7]} 71... e2 {[%clk
0:00:15.4]} 72. Bf2 {[%clk 0:00:17.6]} 72... Ba4 {[%clk 0:00:14.2]} 73. Rxf4
{[%clk 0:00:17.9]} 73... Bb3 {[%clk 0:00:16.1]} 74. Rd4+ {[%clk 0:00:18.3]}
74... Kc2 {[%clk 0:00:17.3]} 1-0

[Event "*** Titled Tuesday 3|2 Blitz"]
[Site "Chess.com"]
[Date "2016.05.03"]
[Round "3"]
[White "yian123"]
[Black "Zurability"]
[Result "1/2-1/2"]
[WhiteElo "2485"]
[BlackElo "2415"]
[TimeControl "180+2"]
[EndTime "11:37:58 PDT"]
[Termination "Game drawn - insufficient material"]

1. e4 {[%clk 0:03:01.9]} 1... d6 {[%clk 0:03:01.3]} 2. d4 {[%clk 0:03:02.8]}
2... Nf6 {[%clk 0:03:02.9]} 3. Nc3 {[%clk 0:03:04]} 3... e5 {[%clk 0:03:04.3]}
4. Nf3 {[%clk 0:03:04.5]} 4... Nbd7 {[%clk 0:03:05.2]} 5. Bc4 {[%clk 0:03:05.3]}
5... Be7 {[%clk 0:03:06.6]} 6. O-O {[%clk 0:03:06.4]} 6... O-O {[%clk
0:03:07.6]} 7. Re1 {[%clk 0:03:07.9]} 7... c6 {[%clk 0:03:08.5]} 8. a4 {[%clk
0:03:08.7]} 8... exd4 {[%clk 0:03:10]} 9. Nxd4 {[%clk 0:03:09.5]} 9... Ne5
{[%clk 0:03:11.4]} 10. Ba2 {[%clk 0:03:03.6]} 10... Re8 {[%clk 0:03:13]} 11. h3
{[%clk 0:03:04]} 11... Ng6 {[%clk 0:03:14]} 12. f4 {[%clk 0:02:57.3]} 12... Bd7
{[%clk 0:03:15.1]} 13. Kh1 {[%clk 0:02:53.4]} 13... Qa5 {[%clk 0:03:15.3]} 14.
Bd2 {[%clk 0:02:51.1]} 14... Qh5 {[%clk 0:03:11]} 15. Qxh5 {[%clk 0:02:21.2]}
15... Nxh5 {[%clk 0:03:12.9]} 16. Nde2 {[%clk 0:02:21.9]} 16... Bh4 {[%clk
0:02:32.1]} 17. Rf1 {[%clk 0:02:19.3]} 17... Ng3+ {[%clk 0:02:33.1]} 18. Nxg3
{[%clk 0:02:20.1]} 18... Bxg3 {[%clk 0:02:35]} 19. Rf3 {[%clk 0:02:19.2]} 19...
Bh4 {[%clk 0:02:35.9]} 20. Rd3 {[%clk 0:02:18.2]} 20... Be7 {[%clk 0:02:24]} 21.
Rf1 {[%clk 0:02:17.3]} 21... Rad8 {[%clk 0:02:21.5]} 22. Kh2 {[%clk 0:02:17.4]}
22... Nf8 {[%clk 0:02:20]} 23. Be3 {[%clk 0:01:57.9]} 23... b6 {[%clk
0:02:16.9]} 24. Bf2 {[%clk 0:01:47]} 24... Be6 {[%clk 0:02:16.7]} 25. Bxe6
{[%clk 0:01:28]} 25... fxe6 {[%clk 0:02:18.6]} 26. a5 {[%clk 0:01:07.8]} 26...
Nd7 {[%clk 0:02:16]} 27. axb6 {[%clk 0:01:07.2]} 27... axb6 {[%clk 0:02:17.5]}
28. Rfd1 {[%clk 0:01:06.6]} 28... b5 {[%clk 0:01:53.9]} 29. b3 {[%clk
0:00:57.5]} 29... g6 {[%clk 0:01:51.3]} 30. Ne2 {[%clk 0:00:58.3]} 30... e5
{[%clk 0:01:43.6]} 31. Bg3 {[%clk 0:00:54.1]} 31... Bf8 {[%clk 0:01:40.3]} 32.
fxe5 {[%clk 0:00:38.3]} 32... Nxe5 {[%clk 0:01:39.9]} 33. Rd4 {[%clk 0:00:37.6]}
33... Ra8 {[%clk 0:01:34.6]} 34. Bxe5 {[%clk 0:00:20.1]} 34... Rxe5 {[%clk
0:01:28.6]} 35. Nf4 {[%clk 0:00:19.9]} 35... Rae8 {[%clk 0:01:26.9]} 36. c4
{[%clk 0:00:17]} 36... bxc4 {[%clk 0:01:21.1]} 37. Rxc4 {[%clk 0:00:17.7]} 37...
Rxe4 {[%clk 0:01:22.5]} 38. Nd3 {[%clk 0:00:15.9]} 38... Rxc4 {[%clk 0:01:22.1]}
39. bxc4 {[%clk 0:00:17]} 39... Re4 {[%clk 0:01:23.7]} 40. Rc1 {[%clk
0:00:16.9]} 40... Kg7 {[%clk 0:00:52.4]} 41. Kg1 {[%clk 0:00:08.9]} 41... Rd4
{[%clk 0:00:50.5]} 42. Nb4 {[%clk 0:00:09.3]} 42... d5 {[%clk 0:00:51.5]} 43.
Nxc6 {[%clk 0:00:10.4]} 43... Rxc4 {[%clk 0:00:52.8]} 44. Rxc4 {[%clk
0:00:10.8]} 44... dxc4 {[%clk 0:00:54.7]} 45. Kf1 {[%clk 0:00:10.4]} 45... Kf6
{[%clk 0:00:54]} 46. Ke2 {[%clk 0:00:10.9]} 46... Ke6 {[%clk 0:00:54.6]} 47.
Nd4+ {[%clk 0:00:08.3]} 47... Kd5 {[%clk 0:00:55]} 48. Nf3 {[%clk 0:00:09.9]}
48... Be7 {[%clk 0:00:55.4]} 49. g4 {[%clk 0:00:10.8]} 49... Bf6 {[%clk
0:00:54.8]} 50. h4 {[%clk 0:00:11.7]} 50... Ke4 {[%clk 0:00:53.9]} 51. Nd2+
{[%clk 0:00:11.5]} 51... Kd4 {[%clk 0:00:52.8]} 52. h5 {[%clk 0:00:12.7]} 52...
g5 {[%clk 0:00:49.8]} 53. Nf3+ {[%clk 0:00:11.8]} 53... Ke4 {[%clk 0:00:48.6]}
54. Nd2+ {[%clk 0:00:12.1]} 54... Kf4 {[%clk 0:00:50.3]} 55. Nxc4 {[%clk
0:00:13]} 55... Kxg4 {[%clk 0:00:51.7]} 56. h6 {[%clk 0:00:14.3]} 56... Kh5
{[%clk 0:00:52.9]} 57. Nd6 {[%clk 0:00:14.7]} 57... g4 {[%clk 0:00:49.2]} 58.
Ne4 {[%clk 0:00:14.2]} 58... Bh4 {[%clk 0:00:47.8]} 59. Nc5 {[%clk 0:00:12.9]}
59... Kxh6 {[%clk 0:00:47.8]} 60. Nd7 {[%clk 0:00:12.6]} 60... Kg5 {[%clk
0:00:48.5]} 61. Ne5 {[%clk 0:00:13.7]} 61... h5 {[%clk 0:00:50.1]} 62. Kf1
{[%clk 0:00:15]} 62... Bg3 {[%clk 0:00:51.2]} 63. Nd3 {[%clk 0:00:15.7]} 63...
Bd6 {[%clk 0:00:52]} 64. Kg2 {[%clk 0:00:17.2]} 64... h4 {[%clk 0:00:53.1]} 65.
Nf2 {[%clk 0:00:18.8]} 65... g3 {[%clk 0:00:49]} 66. Nh3+ {[%clk 0:00:16.9]}
66... Kg4 {[%clk 0:00:49.2]} 67. Nf2+ {[%clk 0:00:16.8]} 67... Kf5 {[%clk
0:00:49.3]} 68. Nh3 {[%clk 0:00:16.6]} 68... Bc5 {[%clk 0:00:50.9]} 69. Kf3
{[%clk 0:00:17]} 69... Bb6 {[%clk 0:00:27]} 70. Nf4 {[%clk 0:00:17]} 70... Bc7
{[%clk 0:00:27.7]} 71. Nh3 {[%clk 0:00:17.3]} 71... Bb8 {[%clk 0:00:27.6]} 72.
Ng1 {[%clk 0:00:16.4]} 72... Bc7 {[%clk 0:00:22.6]} 73. Nh3 {[%clk 0:00:17.4]}
73... Ba5 {[%clk 0:00:24.2]} 74. Ng1 {[%clk 0:00:18.1]} 74... Bd2 {[%clk
0:00:25.3]} 75. Ne2 {[%clk 0:00:17.7]} 75... Be1 {[%clk 0:00:23.5]} 76. Ng1
{[%clk 0:00:18.4]} 76... Bf2 {[%clk 0:00:23.4]} 77. Nh3 {[%clk 0:00:19.5]} 77...
Bd4 {[%clk 0:00:24.4]} 78. Nf4 {[%clk 0:00:20.5]} 78... Bc5 {[%clk 0:00:25.8]}
79. Nh3 {[%clk 0:00:21.6]} 79... Be3 {[%clk 0:00:27.5]} 80. Kxe3 {[%clk
0:00:18.8]} 80... Kg4 {[%clk 0:00:28.8]} 81. Nf2+ {[%clk 0:00:19.9]} 81... gxf2
{[%clk 0:00:25.7]} 82. Kxf2 {[%clk 0:00:20.9]} 82... h3 {[%clk 0:00:26.6]} 83.
Kg1 {[%clk 0:00:22.4]} 83... h2+ {[%clk 0:00:26.9]} 84. Kxh2 {[%clk 0:00:23.2]}
1/2-1/2

[Event "*** Titled Tuesday 3|2 Blitz"]
[Site "Chess.com"]
[Date "2016.05.03"]
[Round "4"]
[White "severomorskij"]
[Black "GMG"]
[Result "1-0"]
[WhiteElo "2599"]
[BlackElo "2438"]
[TimeControl "180+2"]
[EndTime "11:44:35 PDT"]
[Termination "severomorskij won by resignation"]

1. d4 {[%clk 0:03:01.7]} 1... d5 {[%clk 0:02:58.2]} 2. c4 {[%clk 0:03:01.8]}
2... e6 {[%clk 0:02:57.7]} 3. Nc3 {[%clk 0:03:00.9]} 3... Bb4 {[%clk 0:02:59]}
4. cxd5 {[%clk 0:03:00.4]} 4... exd5 {[%clk 0:02:59.4]} 5. Bf4 {[%clk 0:03:02]}
5... Nf6 {[%clk 0:02:54.4]} 6. e3 {[%clk 0:03:03.1]} 6... O-O {[%clk 0:02:54.5]}
7. Bd3 {[%clk 0:03:04.2]} 7... c5 {[%clk 0:02:54.1]} 8. Ne2 {[%clk 0:03:02.7]}
8... Nc6 {[%clk 0:02:42.4]} 9. O-O {[%clk 0:03:03.1]} 9... cxd4 {[%clk
0:02:41.8]} 10. exd4 {[%clk 0:03:04.2]} 10... Bg4 {[%clk 0:02:40.4]} 11. Qb3
{[%clk 0:02:56]} 11... Bxc3 {[%clk 0:02:32]} 12. bxc3 {[%clk 0:02:42.9]} 12...
Na5 {[%clk 0:02:31.8]} 13. Qc2 {[%clk 0:02:36.2]} 13... Bxe2 {[%clk 0:02:27.4]}
14. Qxe2 {[%clk 0:02:34.4]} 14... Re8 {[%clk 0:02:26.8]} 15. Qf3 {[%clk
0:02:31]} 15... Rc8 {[%clk 0:02:26]} 16. Bg5 {[%clk 0:02:20]} 16... h6 {[%clk
0:02:15.9]} 17. Bxf6 {[%clk 0:02:17.7]} 17... Qxf6 {[%clk 0:02:17.8]} 18. Qxd5
{[%clk 0:02:17.6]} 18... Rxc3 {[%clk 0:02:14.5]} 19. Qxa5 {[%clk 0:02:18.1]}
19... Rxd3 {[%clk 0:02:03]} 20. Qb5 {[%clk 0:02:18.6]} 1-0